[Event "MPL-4 Indian Chess Tour 2022"]
[Site "Chess24"]
[Date "2022.09.27"]
[Round "12.1"]
[White "Raja Harshit"]
[Black "Narayanan.S.L"]
[Result "0-1"]
[ECO "B46"]
[WhiteElo "2459"]
[BlackElo "2657"]
[Annotator "TA"]
[PlyCount "54"]
[EventDate "2022.09.29"]
[EventType "tourn (rapid)"]
[EventCountry "NET"]
[SourceTitle "playchess.com"]
[Source "ChessBase"]
[SourceQuality "1"]
[WhiteTeam "India"]
[BlackTeam "India"]
[WhiteTeamCountry "IND"]
[BlackTeamCountry "IND"]
[TimeControl "900+10"]

{[%evp 11,54,24,29,18,56,18,12,16,28,0,1,-8,0,-10,4,2,39,0,33,27,119,24,23,0,3,0,4,14,54,43,70,82,93,78,73,22,30,33,17,-146,-72,-512,-505,-480,-446]} 1. e4 {[%emt 0:00:00]} c5 {[%emt 0:00:00]} 2. Nf3 {[%emt 0:00:02]} e6 {[%emt 0:00:02]} 3. d4 {[%emt 0:00:04]} cxd4 {[%emt 0:00:00]} 4. Nxd4 {[%emt 0:00:00]} Nc6 {[%emt 0:00:01]} 5. Nc3 {[%emt 0:00:00]} a6 {[%emt 0:00:02]} 6. Nxc6 {[%emt 0:00:22]} bxc6 {[%emt 0:00:02]} 7. Qf3 {[%emt 0:00:01] [#] B46: Sicilian: Taimanov: 5 Nc3 a6.} Ne7 $146 {[%emt 0:01:02]} ({Predecessor:} 7... d5 8. Qg3 f5 9. exf5 exf5 10. Bf4 Nf6 11. Be2 Ra7 12. O-O Kf7 13. Rad1 h6 14. Be5 g5 {1-0 (53) Anand,V (2753)-Nepomniachtchi,I (2792) Zagreb 2021}) 8. Bd3 {[%emt 0:01:49]} Ng6 {[%emt 0:00:04]} 9. O-O {[%emt 0:00:07] The position is equal.} d5 {[%emt 0:00:21]} 10. b3 {[%emt 0:00:12]} Bd6 {[%emt 0:01:20]} 11. Bb2 {[%emt 0:00:04]} O-O {[%emt 0:00:02]} 12. Rad1 {[%emt 0:00:03][%cal Re4d5]} Qg5 {[%emt 0:01:17]} (12... Qh4 13. g3 Ne5 14. Qe3 $11) (12... Qc7 $5 {[%cal Rd6h2]}) 13. g3 {[%emt 0:00:31]} Bb7 {[%emt 0:01:15]} (13... Ne5 $5 {[%cal Re5f3]} 14. Qe2 Nxd3 15. cxd3 d4 $11) 14. Na4 {[%emt 0:00:43]} Rad8 {[%emt 0:00:16]} 15. Qg2 {[%emt 0:00:32]} c5 {[%emt 0:02:26]} (15... Qe7 $11 {keeps the balance.}) 16. exd5 {[%emt 0:02:09]} ({Don't play} 16. f4 $6 Qe7 $14) (16. e5 $1 $16 {[%cal Re5d6]} Be7 17. f4) 16... exd5 $11 {[%emt 0:02:11]} 17. Rde1 {[%emt 0:03:14] Strongly threatening f4.} Rde8 {[%emt 0:02:31]} 18. Nb6 {[%emt 0:00:36]} Rxe1 {[%emt 0:00:14]} 19. Rxe1 {[%emt 0:00:02]} Qd2 {[%emt 0:00:31]} (19... c4 $5 20. Bxc4 (20. bxc4 dxc4 21. Qxb7 cxd3 $11) 20... Qd2 $14) 20. Re2 {[%emt 0:00:02]} Qd1+ {[%emt 0:00:10]} 21. Qf1 {[%emt 0:00:02]} Qxf1+ {[%emt 0:00:00]} 22. Kxf1 {[%emt 0:00:00]} Rd8 {[%emt 0:00:16]} 23. Bxg6 {[%emt 0:01:23]} (23. f4 $16) 23... hxg6 {[%emt 0:00:02]} 24. Be5 {[%emt 0:00:01]} Kf8 {[%emt 0:01:56]} 25. a4 $2 {[%emt 0:00:15] [#]} (25. Na4 $11) 25... a5 {[%emt 0:00:08]} (25... Bxe5 $142 $1 26. Rxe5 f6) 26. Ke1 $2 {[%emt 0:01:09][%mdl 8192] [#]} (26. Bc3 $17) 26... Bxe5 $1 $19 {[%emt 0:00:09]} 27. Rxe5 {[%emt 0:00:44]} Rd6 {[%emt 0:00:00] Weighted Error Value: White=0.61/Black=0.22 (precise)} 0-1

[Event "MPL-4 Indian Chess Tour 2022"]
[Site "Chess24"]
[Date "2022.09.27"]
[Round "12.2"]
[White "Adhiban, B.."]
[Black "Mohammad Nubairshah Shaikh"]
[Result "1/2-1/2"]
[ECO "D10"]
[WhiteElo "2603"]
[BlackElo "2461"]
[Annotator "TA"]
[PlyCount "124"]
[EventDate "2022.09.29"]
[EventType "tourn (rapid)"]
[EventCountry "NET"]
[SourceTitle "playchess.com"]
[Source "ChessBase"]
[SourceQuality "1"]
[WhiteTeam "India"]
[BlackTeam "India"]
[WhiteTeamCountry "IND"]
[BlackTeamCountry "IND"]
[TimeControl "900+10"]

{[%evp 13,123,7,11,9,10,8,22,14,10,8,6,12,15,23,23,10,39,31,55,65,66,50,72,5,30,6,6,0,0,7,0,0,25,31,25,0,0,0,0,0,0,0,0,0,0,0,0,0,0,0,0,0,0,0,0,0,0,0,0,0,0,0,0,0,0,0,0,0,0,0,0,0,0,0,0,0,0,0,0,0,0,0,0,0,0,0,0,0,0,0,0,0,0,0,0,0,0,0,0,0,0,0,0,0,0,0,0,0,0,0,0,0]} 1. c4 {[%emt 0:00:00]} c6 {[%emt 0:00:00]} 2. d4 {[%emt 0:00:14]} d5 {[%emt 0:00:02]} 3. cxd5 {[%emt 0:00:01]} cxd5 {[%emt 0:00:01]} 4. Bf4 {[%emt 0:00:01]} Nc6 {[%emt 0:00:02]} 5. e3 {[%emt 0:00:01]} Nf6 {[%emt 0:00:02]} 6. Nc3 {[%emt 0:00:02]} Bf5 {[%emt 0:00:01]} 7. Qb3 {[%emt 0:00:03]} Na5 $1 {[%emt 0:00:02]} 8. Qa4+ {[%emt 0:00:01] D10: Slav Defence: 3 cxd5 (without early Nf3) and 3 Nc3.} Bd7 {[%emt 0:00:02]} 9. Qc2 {[%emt 0:00:01] White wants to play Nb5.} e6 {[%emt 0:00:08]} 10. Nf3 {[%emt 0:00:12]} Be7 {[%emt 0:00:21]} 11. h3 {[%emt 0:00:04]} Rc8 {[%emt 0:00:27][%cal Of6e4]} 12. Bd3 {[%emt 0:00:03] Prevents Ne4.} O-O {[%emt 0:01:50]} 13. O-O {[%emt 0:00:04]} b5 {[%emt 0:01:05] [#] Threatens to win with ...b4.} 14. a3 {[%emt 0:00:36]} Qb6 {[%emt 0:01:18]} 15. Ne5 {[%emt 0:00:50]} h6 {[%emt 0:01:04]} 16. Qe2 {[%emt 0:05:52]} Nc4 {[%emt 0:00:46]} 17. Rfc1 {[%emt 0:00:45]} Rfd8 {[%emt 0:00:20] [#]} 18. Rc2 $146 {[%emt 0:00:11] White is more active.} (18. Nxd7 $16 Nxd7 19. Rab1) ({Predecessor:} 18. g4 Be8 19. g5 hxg5 20. Bxg5 g6 21. Kh1 Qb7 22. Rg1 Nh5 23. Bxe7 Qxe7 24. Qxh5 Nxe5 25. Qxe5 {1-0 (30) Soto Hernandez,H (2474)-Joie,S (2412) Chess.com INT 2019}) 18... Be8 $11 {[%emt 0:00:08][%cal Oc4b2]} 19. Rac1 {[%emt 0:00:26]} (19. a4 $5 {[%cal Ra4b5]}) 19... Qb7 {[%emt 0:00:54]} 20. Nb1 {[%emt 0:03:03]} Nd7 {[%emt 0:00:46]} 21. Nxd7 {[%emt 0:01:12]} Bxd7 {[%emt 0:00:17]} 22. b3 {[%emt 0:01:41]} Nxa3 {[%emt 0:00:41]} 23. Nxa3 {[%emt 0:00:04]} Bxa3 {[%emt 0:00:04]} 24. Rxc8 {[%emt 0:00:27]} (24. Rc7 {is interesting.} Qb6 25. R1c2 Bf8 26. g4) 24... Rxc8 {[%emt 0:00:17] The position is equal.} 25. Rxc8+ {[%emt 0:00:01]} Qxc8 {[%emt 0:00:57]} 26. Bxb5 {[%emt 0:00:01]} Bxb5 {[%emt 0:00:58]} 27. Qxb5 {[%emt 0:00:00][%mdl 4096] Endgame KQB-KQB} a6 {[%emt 0:00:02]} 28. Qb6 {[%emt 0:00:37]} Be7 {[%emt 0:00:54]} 29. Bd6 {[%emt 0:00:28]} Bxd6 {[%emt 0:00:29]} 30. Qxd6 {[%emt 0:00:03] KQ-KQ} Qc1+ {[%emt 0:00:02]} 31. Kh2 {[%emt 0:00:01]} Qc2 {[%emt 0:00:01][%csl LRb3,LRf2]} 32. Qxa6 {[%emt 0:00:11]} Qxb3 {[%emt 0:00:10]} 33. Qc8+ {[%emt 0:00:10]} Kh7 {[%emt 0:00:02]} 34. Qc7 {[%emt 0:00:03]} Kg6 {[%emt 0:00:08]} 35. h4 {[%emt 0:00:02][%cal Oh4h5] [#] Hoping for h5+!} Qd1 {[%emt 0:00:50]} 36. f3 {[%emt 0:00:06][%cal Oh4h5] aiming for h5+!} Qe1 {[%emt 0:00:27][%csl LRe3,LRh4]} 37. Qf4 {[%emt 0:00:31]} f5 {[%emt 0:01:25]} 38. Qg3+ {[%emt 0:00:31]} Qxg3+ {[%emt 0:00:02]} 39. Kxg3 {[%emt 0:00:00] KP-KP} Kf6 {[%emt 0:00:16]} 40. Kf4 {[%emt 0:00:35]} g5+ {[%emt 0:00:07]} 41. hxg5+ {[%emt 0:00:01]} hxg5+ {[%emt 0:00:04]} 42. Kg3 {[%emt 0:00:01]} e5 {[%emt 0:00:41]} 43. Kf2 {[%emt 0:01:01]} exd4 {[%emt 0:02:38]} 44. exd4 {[%emt 0:00:01] K3P-K3P} f4 {[%emt 0:00:01]} 45. g3 {[%emt 0:01:05]} fxg3+ {[%emt 0:00:13]} 46. Kxg3 {[%emt 0:00:01] KPP-KPP} Kf5 {[%emt 0:00:01]} 47. Kg2 {[%emt 0:00:01]} Kf4 {[%emt 0:00:26]} 48. Kf2 {[%emt 0:00:01]} g4 {[%emt 0:00:04]} 49. fxg4 {[%emt 0:00:00]} Kxg4 {[%emt 0:00:01] KP-KP} 50. Kg2 {[%emt 0:00:02]} Kf4 {[%emt 0:00:02]} 51. Kf2 {[%emt 0:00:01]} Ke4 {[%emt 0:00:02]} 52. Ke2 {[%emt 0:00:01]} Kf4 {[%emt 0:00:12]} (52... Kxd4 $5 53. Kd2 $8 Ke5 $11) 53. Kf2 {[%emt 0:00:01]} Ke4 {[%emt 0:00:01]} 54. Ke2 {[%emt 0:00:01]} Kxd4 {[%emt 0:00:00] KP-K} 55. Kd2 {[%emt 0:00:01]} Ke4 {[%emt 0:00:09]} (55... Kc4 $5 56. Kc2 $8 d4 $11) 56. Ke2 {[%emt 0:00:00]} d4 {[%emt 0:00:02][%cal Bd5d4,Bd4d3,Bd3d2][%mdl 32]} (56... Kd4 $5 57. Kd2 $8 Ke5 $11) 57. Kd2 {[%emt 0:00:01]} d3 {[%emt 0:00:01]} 58. Kd1 {[%emt 0:00:01]} Kd4 {[%emt 0:00:09][%cal Be4d4,Bd4c4,Bc4c3,Bc3d3][%mdl 32]} 59. Kd2 {[%emt 0:00:01]} Kc4 {[%emt 0:00:00]} 60. Kd1 {[%emt 0:00:01]} Kc3 {[%emt 0:00:00]} (60... Kb3 $5) 61. Kc1 {[%emt 0:00:01]} d2+ {[%emt 0:00:05]} 62. Kd1 {[%emt 0:00:01]} Kd3 {[%emt 0:00:00] Weighted Error Value: White=0.05 (flawless) /Black=0.02 (flawless)} 1/2-1/2

[Event "MPL-4 Indian Chess Tour 2022"]
[Site "Chess24"]
[Date "2022.09.27"]
[Round "12.3"]
[White "Karthikeyan, Murali"]
[Black "Mendonca, Leon Luke"]
[Result "1-0"]
[ECO "B86"]
[WhiteElo "2623"]
[BlackElo "2558"]
[Annotator "TA"]
[PlyCount "83"]
[EventDate "2022.09.29"]
[EventType "tourn (rapid)"]
[EventCountry "NET"]
[SourceTitle "playchess.com"]
[Source "ChessBase"]
[SourceQuality "1"]
[WhiteTeam "India"]
[BlackTeam "India"]
[WhiteTeamCountry "IND"]
[BlackTeamCountry "IND"]
[TimeControl "900+10"]

{[%evp 15,83,0,0,0,0,0,0,-10,27,24,28,33,21,12,29,15,43,27,32,41,49,20,22,0,20,0,34,13,26,24,33,17,39,39,79,85,90,82,97,96,96,96,101,103,112,62,67,62,33,54,351,350,322,320,328,325,317,314,466,452,564,539,679,664,29981,29982,29982,29983,29980,29980]} 1. e4 {[%emt 0:00:00]} c5 {[%emt 0:00:00]} 2. Nf3 {[%emt 0:00:02]} d6 {[%emt 0:00:01]} 3. d4 {[%emt 0:00:00]} cxd4 {[%emt 0:00:00]} 4. Nxd4 {[%emt 0:00:00]} Nf6 {[%emt 0:00:01]} 5. Nc3 {[%emt 0:00:00]} a6 {[%emt 0:00:00]} 6. Bc4 {[%emt 0:00:01]} e6 {[%emt 0:00:11]} 7. O-O {[%emt 0:00:01] 7.Be3 is a critical line.} b5 {[%emt 0:00:30]} 8. Bd3 {[%emt 0:00:01]} Bb7 {[%emt 0:00:27]} 9. Re1 {[%emt 0:00:02] B86: Sicilian Scheveningen/Najdorf: 6 Bc4, without early ...b5.} Nbd7 {[%emt 0:00:19]} 10. a4 {[%emt 0:00:50]} b4 {[%emt 0:00:33]} 11. Na2 {[%emt 0:00:04] The position is equal.} a5 {[%emt 0:00:35]} (11... Qb6 $5 {[%cal Rb6d4]} 12. Be3 Nc5 $11) 12. c3 {[%emt 0:00:52]} bxc3 {[%emt 0:01:09]} 13. Nxc3 {[%emt 0:00:00]} Be7 {[%emt 0:00:01]} 14. Ndb5 {[%emt 0:01:14]} O-O {[%emt 0:00:04] [#]} 15. Bf4 $146 {[%emt 0:00:06]} ({Predecessor:} 15. Bc2 Ne5 16. Bg5 Qb6 17. h3 Rac8 18. Bb3 Ned7 19. Rc1 Rfd8 20. Qe2 Nc5 21. Bc2 {1-0 (35) Heinzer,R (1292)-Vetter,U (1901) DESC email 2001}) 15... Nc5 {[%emt 0:01:51]} 16. Bc2 {[%emt 0:00:11][%cal Rb5d6]} d5 {[%emt 0:00:51][%cal Rd5e4]} 17. e5 {[%emt 0:02:18]} Nfe4 {[%emt 0:01:23]} 18. Qh5 {[%emt 0:00:22]} (18. Qg4 $5 {[%cal Rc3e4]}) 18... g6 {[%emt 0:00:47]} 19. Qh6 {[%emt 0:03:24]} Re8 {[%emt 0:02:32]} 20. Bxe4 {[%emt 0:00:43]} Bf8 {[%emt 0:01:36]} 21. Qh3 {[%emt 0:00:16]} dxe4 {[%emt 0:01:19]} 22. Qg3 {[%emt 0:01:16]} ({But not} 22. Nd6 Bxd6 23. exd6 Nd3 $17) 22... Qb6 {[%emt 0:02:33]} ({Resist} 22... Nd3 23. Nxe4 Bxe4 24. Rxe4 $16) 23. Be3 {[%emt 0:03:13]} Red8 {[%emt 0:00:16] Prevents Nd6.} 24. Nd6 {[%emt 0:00:59]} Rxd6 {[%emt 0:01:26]} 25. exd6 {[%emt 0:00:02]} Bxd6 {[%emt 0:00:00]} 26. Qg5 {[%emt 0:00:10] Nb5 is the strong threat.} Qd8 {[%emt 0:00:41]} 27. Qxd8+ {[%emt 0:01:45]} Rxd8 {[%emt 0:00:00]} 28. Rad1 {[%emt 0:00:42] Black must now prevent Bxc5.} Nd3 {[%emt 0:00:03] [#]} 29. Bg5 $1 $36 {[%emt 0:00:12][%csl LRd8,LRe4][%mdl 2048] White is really pushing.} f6 {[%emt 0:00:39]} 30. Bxf6 {[%emt 0:00:05]} Rf8 {[%emt 0:00:01]} 31. Nxe4 {[%emt 0:00:58]} (31. Rxe4 {is interesting.} Nxf2 32. Kxf2 Bxe4 33. Rxd6 Rxf6+ 34. Kg3) 31... Nxe1 {[%emt 0:00:06]} 32. Nxd6 {[%emt 0:00:01]} Rxf6 $2 {[%emt 0:00:12][%mdl 8192] This move loses the game for Black.} (32... Nf3+ $1 $14 33. Kh1 (33. gxf3 Bxf3 34. Rd4 Rxf6 $11) 33... Bc6) 33. Nxb7 $14 {[%emt 0:00:02][%mdl 4096] Endgame KRN-KRN} Nc2 {[%emt 0:00:03]} 34. Nxa5 {[%emt 0:00:05]} Rf5 {[%emt 0:00:20]} 35. Nc4 {[%emt 0:00:12]} Rc5 {[%emt 0:00:06]} 36. b3 {[%emt 0:00:04]} e5 {[%emt 0:00:03]} (36... Kf8 $142 37. a5 Rc7) 37. a5 $18 {[%emt 0:00:25][%cal Ba4a5,Ba5a6][%mdl 32]} Nd4 {[%emt 0:00:09]} 38. a6 {[%emt 0:00:09] [#] Hoping for a7.} Rc7 {[%emt 0:00:05]} 39. Nxe5 {[%emt 0:00:07]} Nxb3 {[%emt 0:00:09]} 40. Rd8+ {[%emt 0:00:03] White mates.} Kg7 {[%emt 0:00:02]} 41. Rd7+ {[%emt 0:00:00]} Rxd7 {[%emt 0:00:04]} 42. Nxd7 {[%emt 0:00:00] Weighted Error Value: White=0.05 (flawless) /Black=0.45} 1-0

[Event "MPL-4 Indian Chess Tour 2022"]
[Site "Chess24"]
[Date "2022.09.27"]
[Round "12.4"]
[White "Pranav, V."]
[Black "Ganguly, Surya Shekhar"]
[Result "1/2-1/2"]
[ECO "C55"]
[WhiteElo "2530"]
[BlackElo "2589"]
[Annotator "TA"]
[PlyCount "54"]
[EventDate "2022.09.29"]
[EventType "tourn (rapid)"]
[EventCountry "NET"]
[SourceTitle "playchess.com"]
[Source "ChessBase"]
[SourceQuality "1"]
[WhiteTeam "India"]
[BlackTeam "India"]
[WhiteTeamCountry "IND"]
[BlackTeamCountry "IND"]
[TimeControl "900+10"]

{[%evp 15,54,19,31,31,24,37,28,33,35,38,52,23,15,25,22,35,43,32,39,41,33,47,48,21,29,14,17,10,27,12,10,9,9,10,16,0,1,0,13,0,15]} 1. e4 {[%emt 0:00:00]} e5 {[%emt 0:00:00]} 2. Nf3 {[%emt 0:00:01]} Nc6 {[%emt 0:00:01]} 3. Bc4 {[%emt 0:00:01]} Nf6 {[%emt 0:00:03]} 4. d3 {[%emt 0:00:01]} Be7 {[%emt 0:00:04]} 5. O-O {[%emt 0:00:15]} O-O {[%emt 0:00:03]} 6. Re1 {[%emt 0:00:01]} d6 {[%emt 0:00:01]} 7. a4 {[%emt 0:00:01]} Be6 {[%emt 0:00:02]} 8. a5 {[%emt 0:00:20]} a6 {[%emt 0:00:05]} 9. Nc3 {[%emt 0:00:19] C55: Two Knights: 4 d3, 4 d4 exd4 5 e5 and Max Lange Attack.} Nd4 {[%emt 0:00:23]} 10. Nxd4 {[%emt 0:02:08]} exd4 {[%emt 0:00:02]} 11. Bxe6 {[%emt 0:00:01] White has an edge.} fxe6 {[%emt 0:00:03]} 12. Ne2 {[%emt 0:00:03]} e5 {[%emt 0:00:16] [#]} 13. h3 $146 {[%emt 0:00:37]} ({Predecessor:} 13. f4 c5 14. Ng3 Qd7 15. c4 exf4 16. Bxf4 g6 17. Bd2 Ng4 18. Rf1 Bh4 19. Qe2 Rxf1+ 20. Rxf1 Rf8 21. Rxf8+ Kxf8 22. b4 Kg8 {½-½ (22) Admiraal,M (2448)-Burg,T (2511) Netherlands 2017}) 13... d5 {[%emt 0:01:21]} 14. Ng3 {[%emt 0:00:49]} dxe4 {[%emt 0:00:01]} 15. Nxe4 {[%emt 0:00:01]} Nxe4 {[%emt 0:00:00]} 16. Rxe4 {[%emt 0:00:03]} Bh4 {[%emt 0:00:11]} 17. f3 {[%emt 0:00:32]} Bg3 {[%emt 0:00:35]} 18. Bd2 {[%emt 0:00:23]} Qd6 {[%emt 0:00:51]} 19. Qe2 {[%emt 0:01:37]} Rf5 {[%emt 0:00:36]} 20. Kh1 {[%emt 0:00:27]} h5 {[%emt 0:02:01]} 21. c3 {[%emt 0:01:40]} c5 {[%emt 0:00:42]} 22. cxd4 {[%emt 0:00:10]} cxd4 {[%emt 0:00:01] The position is equal.} 23. Rc1 {[%emt 0:00:06]} Rff8 {[%emt 0:00:18]} 24. Be1 {[%emt 0:01:44]} Bf4 {[%emt 0:00:04]} 25. Bd2 {[%emt 0:00:02] [#] Strongly threatening Bxf4.} Bg3 {[%emt 0:00:00]} 26. Be1 {[%emt 0:01:38]} Bf4 {[%emt 0:00:02]} 27. Bd2 {[%emt 0:00:02] And now Bxf4 would win.} Bg3 $1 {[%emt 0:00:01] Weighted Error Value: White=0.07 (flawless) /Black=0.03 (flawless)} 1/2-1/2

[Event "MPL-4 Indian Chess Tour 2022"]
[Site "Chess24"]
[Date "2022.09.27"]
[Round "12.5"]
[White "Puranik, Abhimanyu"]
[Black "Iniyan, P."]
[Result "0-1"]
[ECO "D02"]
[WhiteElo "2603"]
[BlackElo "2556"]
[Annotator "TA"]
[PlyCount "104"]
[EventDate "2022.09.29"]
[EventType "tourn (rapid)"]
[EventCountry "NET"]
[SourceTitle "playchess.com"]
[Source "ChessBase"]
[SourceQuality "1"]
[WhiteTeam "India"]
[BlackTeam "India"]
[WhiteTeamCountry "IND"]
[BlackTeamCountry "IND"]
[TimeControl "900+10"]

{[%evp 13,104,1,20,-22,18,6,3,-4,47,-10,-12,-12,-14,-40,-4,-13,-6,-39,-47,-80,-65,-140,-141,-185,-168,-170,-150,-170,-83,-81,-84,-95,-98,-93,0,-125,-124,-215,-216,-208,-208,-213,-206,-221,-212,-247,-239,-218,-226,-229,-199,-243,-186,-256,-259,-561,-568,-606,-436,-715,-485,-580,-435,-468,-472,-478,-483,-480,-478,-470,-464,-535,-532,-513,-510,-1235,-1608,-1511,-1815,-1334,-1616,-954,-947,-2402,-2254,-2347,-2067,-1457,-1245,-5293,-2720,-29980,-29981]} 1. d4 {[%emt 0:00:00]} Nf6 {[%emt 0:00:00]} 2. Nf3 {[%emt 0:00:02]} e6 {[%emt 0:00:02]} 3. Bf4 {[%emt 0:00:01]} d5 {[%emt 0:00:02]} 4. e3 {[%emt 0:00:04]} c5 {[%emt 0:00:11]} 5. c3 {[%emt 0:00:09]} Nc6 {[%emt 0:00:02]} 6. Bd3 {[%emt 0:00:04]} Be7 {[%emt 0:00:07]} 7. Nbd2 {[%emt 0:00:06]} Nh5 {[%emt 0:00:06]} 8. Be5 {[%emt 0:00:55] D02: 1 d4 d5 2 Nf3 sidelines, including 2...Nf6 3 g3 and 2...Nf6 3 Bf4.} Qb6 $5 {[%emt 0:01:05][%mdl 4] Exploring less charted territory.} (8... O-O {keeps more tension.} 9. dxc5 Bxc5 10. Nd4 g6) 9. Qc2 {[%emt 0:01:51]} cxd4 {[%emt 0:00:18]} 10. exd4 {[%emt 0:00:21] The position is equal.} (10. cxd4 Nb4 11. Qb1 (11. Qa4+ $2 Bd7 $19) 11... Nxd3+ 12. Qxd3 f6 $17) 10... Nxe5 {[%emt 0:00:06] [#]} ({Black should try} 10... f6 $11 11. Bg3 g6) 11. Nxe5 $146 {[%emt 0:00:16]} (11. dxe5 $14 g6 12. g3 (12. g4 Ng7 $11)) ({Predecessor:} 11. dxe5 Bd7 12. g3 g6 13. Nd4 Ng7 14. O-O Nf5 15. Qb3 Nxd4 16. Qxb6 axb6 17. cxd4 {1-0 (51) Young,A (2320)-Holt,C (2546) Arlington 2015}) 11... Nf4 $11 {[%emt 0:00:43]} 12. Bf1 {[%emt 0:00:47]} f6 {[%emt 0:02:39]} 13. Nd3 {[%emt 0:00:34]} Ng6 {[%emt 0:01:08]} 14. h4 {[%emt 0:00:10]} Bd6 {[%emt 0:00:07]} 15. h5 {[%emt 0:00:07]} Ne7 {[%emt 0:00:02]} 16. f4 {[%emt 0:02:14] Prevents e5.} Qc7 {[%emt 0:00:45]} 17. g3 {[%emt 0:00:11] [#]} ({Better is} 17. g4 $15) 17... Nf5 $1 $17 {[%emt 0:00:02]} 18. h6 {[%emt 0:02:36]} g5 {[%emt 0:00:39]} (18... Nxg3 19. Rg1 Nxf1 20. hxg7 $17) (18... Nxh6 19. Bh3 $15) 19. Rg1 {[%emt 0:00:34]} gxf4 {[%emt 0:00:15]} 20. gxf4 {[%emt 0:00:02]} Bxf4 {[%emt 0:00:18]} (20... Ne3 $19 {has better winning chances.} 21. Qb3 Bd7) 21. Nxf4 {[%emt 0:00:10]} Qxf4 {[%emt 0:00:00]} 22. O-O-O {[%emt 0:00:47]} Bd7 {[%emt 0:00:10] Black is more active.} (22... Qxh6 $6 23. Re1 Nd6 24. Rh1 $15) 23. Re1 {[%emt 0:01:08]} Nxd4 {[%emt 0:01:12]} 24. Qd3 {[%emt 0:00:17] [#]} (24. cxd4 $2 Rc8 25. Qxc8+ Bxc8 $19) (24. Qd1 $11 {was the only way to keep the balance.}) 24... Nc6 $1 {[%emt 0:00:41] Black continues to play with concentration.} 25. Bh3 {[%emt 0:00:53]} (25. Qxd5 $17 {was worth a try.} O-O-O 26. Qf3 Qxh6 27. Rh1) 25... Ne5 $19 {[%emt 0:00:19]} ({Inferior is} 25... Qxh6 26. Bxe6 O-O-O 27. Rh1 $17) 26. Qe3 {[%emt 0:00:33]} Qxe3 {[%emt 0:00:32]} 27. Rxe3 {[%emt 0:00:00]} Ke7 {[%emt 0:00:01]} 28. Rg7+ {[%emt 0:00:07]} Kd6 {[%emt 0:00:02]} 29. c4 {[%emt 0:00:12]} Rac8 {[%emt 0:00:32]} ({Stronger than} 29... Nxc4 30. Nxc4+ dxc4 31. Re2 $11) 30. b3 {[%emt 0:00:09]} b5 {[%emt 0:00:07][%cal Rb5c4]} 31. Bf1 {[%emt 0:00:52]} Rc7 {[%emt 0:01:53]} 32. Kd1 {[%emt 0:00:30]} a6 {[%emt 0:01:55]} ({But not} 32... bxc4 $2 33. bxc4 Ba4+ 34. Ke1) 33. cxd5 {[%emt 0:00:07]} (33. Ke1 $142) 33... exd5 {[%emt 0:00:00] Strongly threatening ...Rhc8.} 34. Reg3 $2 {[%emt 0:00:49]} (34. Bh3 {is more resistant.}) 34... Rhc8 {[%emt 0:00:14]} 35. Bg2 {[%emt 0:00:15]} Bf5 {[%emt 0:00:05]} 36. Ke2 {[%emt 0:00:23]} (36. Rxc7 $142 Rxc7 37. Bf1) 36... Bg6 {[%emt 0:00:50] Threatens to win with ...Rc2.} 37. Bh3 {[%emt 0:00:02]} Rxg7 {[%emt 0:00:11]} 38. Bxc8 {[%emt 0:00:09]} Bh5+ {[%emt 0:00:03]} 39. Kf2 {[%emt 0:00:01]} Rxg3 {[%emt 0:00:10]} 40. Kxg3 {[%emt 0:00:00][%mdl 4096] Endgame KBN-KBN} a5 {[%emt 0:00:01]} 41. Kf4 {[%emt 0:00:03]} Bg6 {[%emt 0:00:32]} 42. Bf5 {[%emt 0:00:15]} Bxf5 {[%emt 0:00:42]} 43. Kxf5 {[%emt 0:00:00] KN-KN} Ke7 {[%emt 0:00:01]} 44. a4 {[%emt 0:00:01]} (44. Kf4 $142 b4 45. Nb1) 44... b4 {[%emt 0:00:06]} 45. Kf4 {[%emt 0:00:12]} Ke6 {[%emt 0:00:11]} 46. Ke3 {[%emt 0:00:04]} Ng4+ {[%emt 0:00:21]} 47. Kd4 {[%emt 0:00:02]} Kd6 {[%emt 0:00:00]} 48. Nf1 {[%emt 0:00:02]} f5 {[%emt 0:00:02][%cal Bf6f5,Bf5f4][%mdl 32]} 49. Ng3 {[%emt 0:00:04]} Nxh6 {[%emt 0:00:01]} 50. Nh5 {[%emt 0:00:01]} Ng4 {[%emt 0:00:09]} 51. Ng7 {[%emt 0:00:04]} f4 {[%emt 0:00:08] ( -> ...f3)} 52. Ne8+ {[%emt 0:00:04]} Kc6 {[%emt 0:00:06] Weighted Error Value: White=0.65/Black=0.29 (precise)} 0-1